Cogmind - Beta 15 @@@ ROGUE MODE // 2025.09.12 @ 12:26:10 Player: shapeshifter Result: Destroyed by S-27 Virus with Autogun Performance ------------- Evolutions (6) 3000 Regions Visited (9) 1800 Robots Destroyed (14) 70 Value Destroyed (281) 281 Prototype IDs (20) 400 Alien Tech Used (0) 0 Bonus (800) 800 TOTAL SCORE: 6351 Bonus ------- Registered with UFD 300 Met Optimus in HQ 500 Cogmind --------- Core Integrity 0/1150 Matter 205/300 Energy 98/100 System Corruption 3% Temperature Cool (0) Movement Core (50) Location -4/Factory Parts ------- > --- POWER (2) -------- (None) > --- PROPULSION (8) --- (None) > --- UTILITY (7) ------ Advanced Signal Interpreter > --- WEAPON (2) ------- (None) > --- INVENTORY (5) ---- Micro Fission Core Energy Well (350) Improved Transmission Jammer Vibroblade Peak State ------------ > --- POWER ------------ Micro Fission Core Meta Core > --- PROPULSION ------- VTOL Module VTOL Module Improved Surge Thruster Field Propulsion Drive Field Propulsion Drive Field Propulsion Drive Field Propulsion Drive > --- UTILITY ---------- Energy Well Enhanced Optical Array Advanced Sensor Array Advanced Signal Interpreter Improved Transmission Jammer Improved Reaction Control System Hardened Light Armor Plating > --- WEAPON ----------- Advanced Datajack Vibroblade > --- INVENTORY -------- Large Storage Unit Advanced Weight Redist. System Stasis Canceller Improved Plasma Cutter Botcube [Rating: 102] Favorites ----------- Power Light Ion Engine Engine Light Ion Engine Power Core Meta Core Propulsion Wheel Treads Light Treads Leg Armored Leg Wheel Wheel Hover Unit Improved Gravmag System Flight Unit VTOL Module Utility Large Storage Unit Device Seismic Detector Storage Large Storage Unit Processor Enhanced Optical Array Hackware Hacking Suite Protection Hardened Light Armor Plating Weapon Barrage Gun Energy Gun Shock Rifle Energy Cannon Improved EM Pulse Cannon Ballistic Gun Barrage Gun Ballistic Cannon Enhanced Gauss Cannon Launcher Mini Grenade Launcher Slashing Weapon Vibroblade Special Melee Weapon Advanced Datajack Build | -11 -10 -10 -10 -9 -6 -5 -5 -5 -4 ------- Run | Yrd Mat Min Sub Scr Fac Fac Was Fac Fac Slots Evolved 12 | . . . . . 8 2 . . 2 Power 1 | . . . . . . . . . 1 Propulsion 6 | . . . . . 4 2 . . . Utility 5 | . . . . . 4 . . . 1 Weapon . | . . . . . . . . . . Parts Attached 69 | 7 1 . 11 4 15 11 2 5 13 Power 6 | 1 . . 3 . . . . 1 1 Engine 4 | 1 . . 3 . . . . . . Core 2 | . . . . . . . . 1 1 Reactor . | . . . . . . . . . . Propulsion 30 | 2 . . 6 1 5 9 . 4 3 Treads 2 | 2 . . . . . . . . . Leg 1 | . . . . . 1 . . . . Wheel 7 | . . . 6 1 . . . . . Hover 3 | . . . . . . 3 . . . Flight 17 | . . . . . 4 6 . 4 3 Utility 22 | 2 1 . . 1 9 1 1 . 7 Device 11 | 1 . . . 1 5 . . . 4 Storage 4 | 1 1 . . . 1 . . . 1 Processor 4 | . . . . . 2 . . . 2 Hackware 1 | . . . . . 1 . . . . Protection 2 | . . . . . . 1 1 . . Artifact . | . . . . . . . . . . Weapon 11 | 2 . . 2 2 1 1 1 . 2 Energy Gun 1 | . . . . 1 . . . . . Energy Cannon 1 | . . . . 1 . . . . . Ballistic Gun 4 | 2 . . 2 . . . . . . Ballistic Cannon 2 | . . . . . . 1 1 . . Launcher 1 | . . . . . 1 . . . . Special Weapon . | . . . . . . . . . . Impact Weapon . | . . . . . . . . . . Slashing Weapon 1 | . . . . . . . . . 1 Piercing Weapon . | . . . . . . . . . . Special Melee Weapon 1 | . . . . . . . . . 1 Unidentified Prototypes 3 | . . . . . 1 . . 1 1 Parts Lost 32 | . . . 1 . 4 9 . 4 14 Power 1 | . . . . . 1 . . . . Propulsion 21 | . . . 1 . 3 6 . 2 9 Utility 9 | . . . . . . 3 . 2 4 Weapon 1 | . . . . . . . . . 1 Highest Loss Streak 14 | . . . 1 . 2 6 . 2 14 To Critical Strikes . | . . . . . . . . . . Average Backups 8 | 2 3 5 11 10 5 3 4 3 5 Power . | . 1 1 1 . . . . . . Propulsion 3 | 1 2 2 5 2 . . . . . Utility 3 | . . 2 3 4 3 2 2 2 3 Weapon 1 | . . . 1 1 . . . . . Tool/Special . | . . . . . . . . . . Unused Backups 20 | . . . 2 11 1 . 1 1 4 Power 2 | . . . . 1 . . . . 1 Propulsion 3 | . . . . 2 1 . . . . Utility 9 | . . . 2 4 . . . 1 2 Weapon 5 | . . . . 4 . . 1 . . Tool/Special 1 | . . . . . . . . . 1 Average Slot Usage (%) 88 | . 100 100 99 96 57 42 55 55 53 Engine 11 | . 14 14 14 14 4 . . . . Treads 4 | . 28 28 6 . . . . . . Wheel 17 | . . . 21 28 4 . . . . Flight 3 | . . . . . 7 6 23 26 22 Device 12 | . 14 14 14 14 14 8 . . 5 Storage 11 | . 14 14 14 14 4 . 5 5 2 Processor 1 | . . . . . 4 11 11 10 9 Energy Gun 1 | . . . . 2 2 . . . . Energy Cannon 2 | . . . . 6 . . . . . Ballistic Gun 17 | . 28 28 28 14 1 . . . . Peak Build Rating 102 | 7 7 7 18 23 52 47 54 58 102 Average Rating 21 | 5 7 7 14 18 36 37 39 42 66 On Entrance 22 | . 7 7 7 16 22 37 36 38 55 Naked Turns . | . . . . . . . . . . Heaviest Build 39 | 15 30 30 33 34 36 14 15 16 39 Greatest Support 40 | 40 40 40 40 30 22 30 16 37 40 Greatest Overweight (x) 2 | . . . 1 1 1 2 . 1 1 Average Overweight (x) . | . . . . . . . . . . Largest Inventory Capacity 15 | 8 15 15 15 15 15 5 5 5 15 Average Capacity 12 | 7 8 15 15 15 7 5 5 5 8 Most Carried 15 | 4 6 5 15 15 15 5 5 5 10 Average Carried 11 | 2 3 5 13 14 7 4 4 4 5 Final Capacity 15 | 8 15 15 15 15 5 5 5 5 5 Final Carried 15 | 3 5 5 15 15 5 5 5 5 4 Class Distribution -------------------- 71% | Mutant 12% | Scavenger-Mutant 5% | Sprinter 5% | Infiltrator-Mutant Dominant Class ---------------- Mutant | -10/Materials Mutant | -10/Mines Mutant | -10/Subcaves Mutant | -9/Scraptown Infiltrator-Mutant | -6/Factory Infiltrator-Mutant | -5/Factory Infiltrator-Mutant | -5/Waste Sprinter | -5/Factory Scout | -4/Factory Resources | -11 -10 -10 -10 -9 -6 -5 -5 -5 -4 ----------- Run | Yrd Mat Min Sub Scr Fac Fac Was Fac Fac Matter Collected 1227 | 255 39 51 369 155 . 64 . . 294 Remotely . | . . . . . . . . . . Salvage Created 436 | 53 41 51 69 . . 46 . . 176 Parts 31 | 8 5 4 4 . . 6 . . 4 Haulers Intercepted 2 | . 1 . . . . . . . 1 Recyclers Shooed . | . . . . . . . . . . Parts Field Recycled . | . . . . . . . . . . Retrieved Matter . | . . . . . . . . . . Parts Self-Destructed 8 | . . . 8 . . . . . . Prevented . | . . . . . . . . . . Kills | -11 -10 -10 -10 -9 -6 -5 -5 -5 -4 ------- Run | Yrd Mat Min Sub Scr Fac Fac Was Fac Fac Combat Hostiles Destroyed 8 | . . 3 2 . . 3 . . . Guns 5 | . . 3 2 . . . . . . Cannons 3 | . . . . . . 3 . . . Classes Destroyed 6 | 1 1 1 1 . . . . . 2 Worker 1 | . . . . . . . . . 1 Tunneler 2 | 2 . . . . . . . . . Hauler 2 | . 1 . . . . . . . 1 Mechanic 1 | . . . . . . . . . 1 Swarmer 6 | . . 3 . . . 3 . . . Subdweller 2 | . . . 2 . . . . . . Best Kill Streak 3 | 1 1 3 1 . . 3 . . 1 Combat Bots Only 3 | . . 3 1 . . 3 . . . Max Kills in Single Turn 1 | 1 1 1 1 . . 1 . . 1 Gunslinging . | . . . . . . . . . . Exploded . | . . . . . . . . . . Melee . | . . . . . . . . . . Uniques/NPCs Destroyed . | . . . . . . . . . . Combat | -11 -10 -10 -10 -9 -6 -5 -5 -5 -4 -------- Run | Yrd Mat Min Sub Scr Fac Fac Was Fac Fac Hostile Shots Fired 420 | . . 22 23 . 48 78 1 13 235 Missed 206 | . . 2 7 . 26 36 1 8 126 Hits 214 | . . 20 16 . 22 42 . 5 109 Projectile 214 | . . 20 16 . 22 42 . 5 109 AOE 7 | . . . 4 . . 3 . . . Critical Strikes 5 | . . . . . . 1 . 1 3 Damage Taken 4220 | . . 164 528 . 291 1131 . 273 1833 Core 2042 | . . 29 42 . 84 609 . 123 1155 Absorbed by Shields . | . . . . . . . . . . Core Remaining (%) 71 | 100 . . . 71 90 . . 26 . Volleys Fired 86 | 3 1 10 58 . . 14 . . . Largest 2 | 2 2 2 2 . . 1 . . . Hottest 58 | 40 40 40 58 . . 47 . . . Shots Fired 158 | 6 2 20 116 . . 14 . . . Gun 144 | 6 2 20 116 . . . . . . Cannon 14 | . . . . . . 14 . . . Launcher . | . . . . . . . . . . Special . | . . . . . . . . . . Kinetic 158 | 6 2 20 116 . . 14 . . . Thermal . | . . . . . . . . . . Explosive . | . . . . . . . . . . Electromagnetic . | . . . . . . . . . . Robot Hit Streak 10 | 2 4 6 10 . . 2 . . . Robot Miss Streak 4 | 2 . 4 3 . . 3 . . . Penetration Max . | . . . . . . . . . . Secondary Targets 3 | . . 2 1 . . . . . . Max Gunslinging Chain 1 | . . 1 1 . . . . . . Shots Hit Robots 44 | 3 2 9 23 . . 4 . . 3 Core Hits 20 | 2 2 3 7 . . 3 . 2 1 Critical Kills . | . . . . . . . . . . Critical Parts Destroyed . | . . . . . . . . . . Critical Strikes . | . . . . . . . . . . Melee Attacks 11 | . . . . . . . . . 11 Impact . | . . . . . . . . . . Slashing 11 | . . . . . . . . . 11 Piercing . | . . . . . . . . . . Sneak Attacks 3 | . . . . . . . . . 3 Combat Hostiles . | . . . . . . . . . . Follow-up Attacks . | . . . . . . . . . . Damage Inflicted 1263 | 38 23 114 413 . . 129 . 153 393 Guns 588 | 38 23 114 413 . . . . . . Cannons 129 | . . . . . . 129 . . . Explosions . | . . . . . . . . . . Melee 385 | . . . . . . . . . 385 Ramming 161 | . . . . . . . . 153 8 Kinetic 717 | 38 23 114 413 . . 129 . . . Thermal . | . . . . . . . . . . Explosive . | . . . . . . . . . . Electromagnetic . | . . . . . . . . . . Impact . | . . . . . . . . . . Slashing 385 | . . . . . . . . . 385 Piercing . | . . . . . . . . . . Highest Corruption 10 | . . . . . 1 . . 10 3 Average Corruption 3 | . . . . . 1 . . 6 2 Corruption Purged . | . . . . . . . . . . Corruption Blocked . | . . . . . . . . . . Effects 5 | . . . . . 1 . . 1 3 Message Errors 1 | . . . . . . . . . 1 Matter Fused 2 | . . . . . 1 . . 1 . Heat Flow Errors 1 | . . . . . . . . . 1 Energy Discharges 1 | . . . . . . . . . 1 Overload Shots . | . . . . . . . . . . Overflow Damage 177 | . . . . . . . . 8 169 Projectiles . | . . . . . . . . . . Explosions . | . . . . . . . . . . Melee 177 | . . . . . . . . 8 169 Knockbacks 3 | . . . . . . 3 . . . Impact . | . . . . . . . . . . Kinetic 2 | . . . . . . 2 . . . Secondary 1 | . . . . . . 1 . . . Self-Inflicted Damage 76 | . . . . . . . . 73 3 Shots . | . . . . . . . . . . Rammed 16 | . . . . . . . . 13 3 Targets Rammed 16 | . . . . . . . . 13 3 Kicked . | . . . . . . . . . . Crushed . | . . . . . . . . . . Highest Temperature 365 | . . . . . . 4 . 48 365 Average Temperature 88 | . . . . . . 4 . 32 91 Received Heat Transfer 388 | . . . . . 75 78 . 27 208 Effects 2 | . . . . . . . . . 2 Shutdowns 1 | . . . . . . . . . 1 Short Circuit 1 | . . . . . . . . . 1 Siege Activations . | . . . . . . . . . . Martial Activations . | . . . . . . . . . . Shielding Activations . | . . . . . . . . . . Robots Disrupted . | . . . . . . . . . . Combat Hostiles . | . . . . . . . . . . Robots Corrupted . | . . . . . . . . . . Combat Hostiles . | . . . . . . . . . . Parts Fried . | . . . . . . . . . . Impact Corruptions 1 | . . . . . . . . 1 . Robots Melted . | . . . . . . . . . . Combat Hostiles . | . . . . . . . . . . Parts Melted . | . . . . . . . . . . Heat Transferred . | . . . . . . . . . . Parts Sabotaged . | . . . . . . . . . . Parts Stolen . | . . . . . . . . . . Parts Stripped . | . . . . . . . . . . Power Chain Reactions . | . . . . . . . . . . Alert | -11 -10 -10 -10 -9 -6 -5 -5 -5 -4 ------- Run | Yrd Mat Min Sub Scr Fac Fac Was Fac Fac Maximum Alert Level . | . . . . . . . . . . Low Security (%) 100 | 100 100 100 . . 100 100 100 100 100 Level 1 . | . . . . . . . . . . Level 2 . | . . . . . . . . . . Level 3 . | . . . . . . . . . . Level 4 . | . . . . . . . . . . Level 5 . | . . . . . . . . . . High Security . | . . . . . . . . . . Max Security . | . . . . . . . . . . Peak Influence 168 | 5 7 60 . . 86 87 11 168 124 Initial 55 | . . . . . . 42 11 . 55 Average 38 | . . 15 . . 21 52 8 79 76 Influence Increases 982 | 10 7 70 . . 146 182 . 233 334 Destroy 0b10 Robot/C 120 | . . 60 . . . 60 . . . Destroy 0b10 Robot/NC 30 | 10 5 . . . . . . . 15 Destroy Leader 24 | . 2 10 . . . 10 . . 2 Successful Hack 39 | . . . . . 26 . . 8 5 Disable Machine 45 | . . . . . . 15 . . 30 Destroy Structure 34 | . . . . . . 22 . . 12 Partial Spotted 45 | . . . . . . . . 15 30 Lose Combat Pursuer 645 | . . . . . 120 75 . 210 240 Influence Decreases 913 | 10 7 70 . . 60 234 33 121 378 Entered New Map 126 | . . . . . . 44 23 1 58 Time Decay 497 | 10 7 70 . . 40 100 10 80 180 Lost Part 290 | . . . . . 20 90 . 40 140 Squads Dispatched 23 | . . . . . 6 3 . 6 8 Investigation 16 | . . . . . 4 1 . 5 6 Extermination 3 | . . . . . 1 1 . . 1 Reinforcement 4 | . . . . . 1 1 . 1 1 Assault . | . . . . . . . . . . Garrison . | . . . . . . . . . . Intercept . | . . . . . . . . . . Searches Triggered . | . . . . . . . . . . Construction Impeded 1 | . . . . . . . . . 1 Haulers Reinforced . | . . . . . . . . . . Active Scanning Responses . | . . . . . . . . . . Cargo Convoy Interrupts . | . . . . . . . . . . Stealth | -11 -10 -10 -10 -9 -6 -5 -5 -5 -4 --------- Run | Yrd Mat Min Sub Scr Fac Fac Was Fac Fac Distress Signals 2 | . . . . . 1 . . . 1 Communications Jammed . | . . . . . . . . . . Distress Signals . | . . . . . . . . . . Times Spotted 110 | . 1 3 12 . 15 18 6 21 34 Peak Tracking Total 17 | . 1 3 2 . 10 6 6 9 17 Tactical Retreats 14 | . . . . . 4 2 . 3 5 Traps | -11 -10 -10 -10 -9 -6 -5 -5 -5 -4 ------- Run | Yrd Mat Min Sub Scr Fac Fac Was Fac Fac Traps Triggered 2 | . . . . . . 1 . . 1 Indirectly . | . . . . . . . . . . Trap Hack Attempts . | . . . . . . . . . . Triggered . | . . . . . . . . . . Disarmed . | . . . . . . . . . . Reprogrammed . | . . . . . . . . . . Reused . | . . . . . . . . . . Traps Extracted . | . . . . . . . . . . Installed . | . . . . . . . . . . Triggered . | . . . . . . . . . . Most Traps Carried 2 | . . . . 2 2 . . . . Machines | -11 -10 -10 -10 -9 -6 -5 -5 -5 -4 ---------- Run | Yrd Mat Min Sub Scr Fac Fac Was Fac Fac Machines Disabled 4 | . . . 1 . . 1 . . 2 Max in Single Turn 1 | . . . 1 . . 1 . . 1 Garrison Access 1 | . . . . . . . . . 1 Machines Repaired . | . . . . . . . . . . Machines Dismantled . | . . . . . . . . . . Machines Sabotaged . | . . . . . . . . . . Overloaded Fab Kills . | . . . . . . . . . . Hacking | -11 -10 -10 -10 -9 -6 -5 -5 -5 -4 --------- Run | Yrd Mat Min Sub Scr Fac Fac Was Fac Fac Machines Accessed 31 | . 1 . 1 4 5 3 . 8 9 Terminals 9 | . . . . . 2 2 . 2 3 Fabricators 2 | . . . . . . . . 2 . Repair Stations . | . . . . . . . . . . Recycling Units 13 | . 1 . . . 3 1 . 4 4 Scanalyzers . | . . . . . . . . . . Garrison Access 2 | . . . . . . . . . 2 Total Hacks 86 | . 1 . 1 30 9 11 . 18 16 Successful 54 | . 1 . 1 30 5 3 . 9 5 Failed 32 | . . . . . 4 8 . 9 11 Catastrophic 8 | . . . . . 1 2 . 1 4 Database Lockouts . | . . . . . . . . . . Manual 37 | . . . . . 6 11 . 9 11 Terminals 28 | . . . . . 5 10 . 7 6 Fabricators 3 | . . . . . . . . 3 . Repair Stations . | . . . . . . . . . . Recycling Units 21 | . 1 . . . 4 1 . 8 7 Scanalyzers . | . . . . . . . . . . Garrison Access 3 | . . . . . . . . . 3 Terminal Hacks 35 | . . . 1 30 1 . . 2 1 Record 22 | . . . . 22 . . . . . Robot Analysis 7 | . . . . 7 . . . . . Level Access Points 1 | . . . . . . . . 1 . Zone Layout 3 | . . . . . 1 . . 1 1 Proto ID Catalog 2 | . . . 1 1 . . . . . Fabricator Hacks 1 | . . . . . . . . 1 . Network Status 1 | . . . . . . . . 1 . Repair Station Hacks . | . . . . . . . . . . Recycling Unit Hacks 3 | . 1 . . . . . . 2 . Process 1 | . . . . . . . . 1 . Retrieve Matter 1 | . . . . . . . . 1 . Retrieve Components 1 | . 1 . . . . . . . . Scanalyzer . | . . . . . . . . . . Garrison Access Hacks 1 | . . . . . . . . . 1 Seal Access 1 | . . . . . . . . . 1 Unauthorized Hacks 14 | . . . . . 4 3 . 4 3 Terminals 3 | . . . . . 1 2 . . . Assimilate 1 | . . . . . 1 . . . . Botnet 1 | . . . . . . 1 . . . Skim 1 | . . . . . . 1 . . . Fabricators . | . . . . . . . . . . Repair Stations . | . . . . . . . . . . Recycling Units 11 | . . . . . 3 1 . 4 3 Fedlink 11 | . . . . . 3 1 . 4 3 Scanalyzers . | . . . . . . . . . . Garrison Access . | . . . . . . . . . . Data Cores Recovered . | . . . . . . . . . . Used . | . . . . . . . . . . Hacking Detections 16 | . 1 . . . 2 2 . 5 6 Full Trace Events 5 | . . . . . 1 . . 1 3 Feedback Events . | . . . . . . . . . . Feedback Blocked . | . . . . . . . . . . Robot Schematics Acquired . | . . . . . . . . . . Robots Built . | . . . . . . . . . . Authchips . | . . . . . . . . . . Time . | . . . . . . . . . . Total Robot Build Rating . | . . . . . . . . . . Part Schematics Acquired . | . . . . . . . . . . Parts Built . | . . . . . . . . . . Authchips . | . . . . . . . . . . Time . | . . . . . . . . . . Total Part Build Rating . | . . . . . . . . . . Parts Repaired . | . . . . . . . . . . Time . | . . . . . . . . . . Parts Recycled . | . . . . . . . . . . Recycled Matter . | . . . . . . . . . . Retrieved Matter . | . . . . . . . . . . Retrieved Components 3 | . 3 . . . . . . . . Parts Scanalyzed . | . . . . . . . . . . Part Schematics Acquired . | . . . . . . . . . . Parts Damaged . | . . . . . . . . . . Bothacking | -11 -10 -10 -10 -9 -6 -5 -5 -5 -4 ------------ Run | Yrd Mat Min Sub Scr Fac Fac Was Fac Fac Used RIF Installer . | . . . . . . . . . . Robots Hacked . | . . . . . . . . . . Non-combat . | . . . . . . . . . . Combat . | . . . . . . . . . . Robot Hacks Applied . | . . . . . . . . . . Relay Couplers Released 2 | . . . . . . . . . 2 Machine Destruction 2 | . . . . . . . . . 2 Fabnet Peak Effective % . | . . . . . . . . . . Robots Rewired . | . . . . . . . . . . Allies Hacked . | . . . . . . . . . . Hacks Repelled . | . . . . . . . . . . Allies | -11 -10 -10 -10 -9 -6 -5 -5 -5 -4 -------- Run | Yrd Mat Min Sub Scr Fac Fac Was Fac Fac Total Allies . | . . . . . . . . . . Largest Group . | . . . . . . . . . . Highest-Rated Group . | . . . . . . . . . . Highest-Rated Ally . | . . . . . . . . . . Total Orders . | . . . . . . . . . . Ally Attacks . | . . . . . . . . . . Total Damage . | . . . . . . . . . . Kills . | . . . . . . . . . . Allies Corrupted . | . . . . . . . . . . Allies Melted . | . . . . . . . . . . Intel | -11 -10 -10 -10 -9 -6 -5 -5 -5 -4 ------- Run | Yrd Mat Min Sub Scr Fac Fac Was Fac Fac Active Infowar (turns) 5062 | 15 194 304 1697 1951 155 200 25 189 332 Optics 798 | . . . . . 52 200 25 189 332 Sensors 390 | . . . . . 101 46 . . 243 Structural 896 | . . . . 808 67 21 . . . Seismic 3353 | 15 194 304 1697 1143 . . . . . Machine Analysis 95 | . . . . . . . . . 95 Jamming 16 | . . . . . 4 10 . . 2 Robot Analysis Total 7 | . . . . 7 . . . . . Derelict Logs Recovered 7 | . . 1 1 5 . . . . . Drone Launches . | . . . . . . . . . . Drone Recoveries . | . . . . . . . . . . Exploration | -11 -10 -10 -10 -9 -6 -5 -5 -5 -4 ------------- Run | Yrd Mat Min Sub Scr Fac Fac Was Fac Fac Turns Passed 5315 | 131 194 304 1697 1951 250 200 25 189 374 Spaces Moved 5723 | 79 104 66 1257 1843 471 403 82 557 861 Core 87 | 18 . . . . . 3 . . 66 Treads 401 | 61 104 66 170 . . . . . . Legs . | . . . . . . . . . . Wheels 2982 | . . . 1087 1843 52 . . . . Hover 61 | . . . . . . 61 . . . Flight 2192 | . . . . . 419 339 82 557 795 Fastest Speed 20 | 50 160 160 107 95 32 24 24 20 22 Average Speed 77 | 134 160 160 116 99 41 36 24 25 28 Slowest Speed 240 | 160 160 160 240 107 100 150 24 112 125 Overloaded Moves . | . . . . . . . . . . Propulsion Burnouts . | . . . . . . . . . . Robots Hopped 50 | . . . . . 14 4 . 8 24 Potential Cave-ins . | . . . . . . . . . . Cave-ins Triggered . | . . . . . . . . . . Exploration Rate (%) 35 | 4 31 11 52 86 17 15 78 27 31 Regions Visited 9 Branch Regions 3 Pre-discovered Areas 6 | . . . . 5 1 . . . . Known Exits Taken 2 | . . . . . 1 . . 1 . Unknown Exits Taken 5 | 1 1 1 1 1 . . . . . Scrap Searched 7 | . . . 2 5 . . . . . Spaces Dug 7 | . . . . . . 1 . . 6 Terrain Destroyed 17 | . . . . . . 11 . . 6 Melee 6 | . . . . . . . . . 6 Projectile 11 | . . . . . . 11 . . . AOE . | . . . . . . . . . . Terrain Rammed . | . . . . . . . . . . Walls Destroyed . | . . . . . . . . . . Machines Disabled . | . . . . . . . . . . Actions | -11 -10 -10 -10 -9 -6 -5 -5 -5 -4 --------- Run | Yrd Mat Min Sub Scr Fac Fac Was Fac Fac Total 6388 | 98 130 245 1375 1964 513 432 87 594 950 Wait 399 | . 21 170 23 76 22 5 . 20 62 Move 5623 | 78 103 65 1256 1842 444 396 81 541 817 Hop 42 | . . . . . 12 3 . 7 20 Pick Up 65 | 10 3 . 16 21 1 1 2 5 6 Fast Attach 34 | . . . . 3 8 11 1 2 9 Attach 30 | 7 . . 4 1 8 1 1 3 5 Detach 10 | . . . . . 4 . . . 6 Swap 14 | . 1 . 8 . 1 . . . 4 Drop 58 | . 1 . 10 21 13 1 2 3 7 Fire 86 | 3 1 10 58 . . 14 . . . Melee 11 | . . . . . . . . . 11 Ram 16 | . . . . . . . . 13 3 Kick . | . . . . . . . . . . Crush . | . . . . . . . . . . Escape Stasis . | . . . . . . . . . . Rewire . | . . . . . . . . . . Trap . | . . . . . . . . . . Miscellaneous . | . . . . . . . . . . Route ------- -11/Scrapyard -10/Materials -10/Mines -10/Subcaves (discovered 2 exits: Rec / *Scr) -9/Scraptown (discovered 2 exits: *Fac x2) -6/Factory (discovered 4 exits: *Fac x2 / Low x2) -5/Factory -5/Waste -5/Factory (discovered 4 exits: *Fac x4) -4/Factory (discovered 3 exits: *Res x3) History --------- Turn | Location | Event 7 | -11/Scrapyard | Discovered new exit (range 14) 132 | -11/Scrapyard | Entered Materials 293 | -10/Materials | Discovered new exit (range 15) 309 | -10/Materials | Build established: Mutant 326 | -10/Materials | Entered Mines 390 | -10/Mines | Learned location of 1 exit from Materials 622 | -10/Mines | Discovered new exit (range 5) 630 | -10/Mines | Entered Subcaves 631 | -10/Subcaves | Approached by a straggling Scientist 635 | -10/Subcaves | Identified exit to Recycling 636 | -10/Subcaves | Ambushed by Subdwellers from Twisted Machinery 662 | -10/Subcaves | Shifting Twisted Machinery released Sub. Monowheel 672 | -10/Subcaves | Shifting Twisted Machinery released Barrage Gun 864 | -10/Subcaves | Scientist uncovered a shortcut to Scraptown 878 | -10/Subcaves | Ambushed by Subdweller buried in earth 1189 | -10/Subcaves | Shifting Twisted Machinery released Piercing Trap 1202 | -10/Subcaves | Shifting Twisted Machinery released Battle Rifle 1255 | -10/Subcaves | A Subdweller sparked back to life 1275 | -10/Subcaves | Found Prototype Leg 1414 | -10/Subcaves | Build established: Scavenger-Mutant 1670 | -10/Subcaves | Visited 4L-MR0's lab 1675 | -10/Subcaves | Identified Arachnoskeleton 1685 | -10/Subcaves | Found Meta Core 1949 | -10/Subcaves | A swath of the cavern ceiling suddenly collapsed 2101 | -10/Subcaves | Build established: Mutant 2327 | -10/Subcaves | Entered Scraptown 2385 | -9/Scraptown | Heard Great Nut preacher, LISTEN AND RECITE! 2405 | -9/Scraptown | Scanned Subdweller tech in exchange for log data 2407 | -9/Scraptown | Learned Factory emergency access door positions 2408 | -9/Scraptown | Learned Factory garrison access intel 2409 | -9/Scraptown | Learned location of Extension (-4) 2410 | -9/Scraptown | Learned location of 2 exits from Lower Caves 2422 | -9/Scraptown | Discovered new exit (range 11) 2700 | -9/Scraptown | Visited UFD Registry 2700 | -9/Scraptown | Registered with UFD as "Dualcell" 2714 | -9/Scraptown | Visited Awakened 2722 | -9/Scraptown | Visited Comm Corps 2754 | -9/Scraptown | Visited Fellowship of the Rings 2774 | -9/Scraptown | Visited IN-MT5's Study 2782 | -9/Scraptown | Visited Red Mages 2795 | -9/Scraptown | Visited Spacefarers 3078 | -9/Scraptown | Visited Botcube Research 3110 | -9/Scraptown | Visited LU-1G1's Boring Crew 3168 | -9/Scraptown | Delivered Scrap Shield to a Scientist 3216 | -9/Scraptown | Visited Science Guys 3251 | -9/Scraptown | Visited Research Penetration Think Tank 3278 | -9/Scraptown | Visited Abandonware Association 3289 | -9/Scraptown | Learned abandonware demo "HACKBUD.EXE" 3306 | -9/Scraptown | Visited Analyses Database 3341 | -9/Scraptown | Visited Curators Association 3358 | -9/Scraptown | Visited Cartography Club 3382 | -9/Scraptown | Found Surveybot 17 Chip 3447 | -9/Scraptown | Learned location of Proximity Caves (-5) 3447 | -9/Scraptown | Learned location of Zion (-6) 3447 | -9/Scraptown | Learned location of Cetus (-4) 3447 | -9/Scraptown | Learned 12 Materials zone layouts 3447 | -9/Scraptown | Learned 16 Factory zone layouts 3447 | -9/Scraptown | Learned 8 Research zone layouts 3447 | -9/Scraptown | Learned 12 Research zone layouts 3447 | -9/Scraptown | Learned 8 Access zone layouts 3447 | -9/Scraptown | Learned 4 Recycling zone layouts 3447 | -9/Scraptown | Learned 16 Lower Caves zone layouts 3447 | -9/Scraptown | Learned 8 Upper Caves zone layouts 3447 | -9/Scraptown | Learned Storage emergency access door positions 3447 | -9/Scraptown | Learned location of 1 exit from Research 3447 | -9/Scraptown | Learned location of 2 exits from Research 3470 | -9/Scraptown | Found Deep Structural Scanner 3616 | -9/Scraptown | Visited Chapter 10 3652 | -9/Scraptown | Found Botcube 4013 | -9/Scraptown | Guru changed UFD alias to "Cogsink" 4225 | -9/Scraptown | Met Optimus 4225 | -9/Scraptown | Accepted into 0bPrime 4268 | -9/Scraptown | Discovered new exit (range 10) 4278 | -9/Scraptown | Entered Factory 4278 | -6/Factory | Evolved 8 slots: Propulsion x4, Utility x4 4279 | -6/Factory | Identified exit to Lower Caves 4280 | -6/Factory | Identified exit to Factory 4282 | -6/Factory | Loaded intel: 4 garrison access locations 4464 | -6/Factory | Spotted B-75 Beast 4482 | -6/Factory | Loaded intel: 8 recycling unit locations 4492 | -6/Factory | Learned location of Protoforge (-2) 4528 | -6/Factory | Entered another Factory area 4528 | -5/Factory | Evolved 2 slots: Propulsion x2 4564 | -5/Factory | Loaded intel: 8 recycling unit locations 4568 | -5/Factory | Spotted B-75 Beast 4666 | -5/Factory | Lost 6 parts (3n3u) 4680 | -5/Factory | Core integrity fell below 50% 4728 | -5/Factory | Sucked down chute 4728 | -5/Factory | Entered Waste 4736 | -5/Waste | Spotted C-40 Crusher 4736 | -5/Waste | Spotted C-40 Crusher 4737 | -5/Waste | Spotted C-40 Crusher 4737 | -5/Waste | Spotted C-40 Crusher 4742 | -5/Waste | Spotted C-40 Crusher 4744 | -5/Waste | Spotted C-40 Crusher 4747 | -5/Waste | Discovered new exit (range 22) 4753 | -5/Waste | Entered Factory 4764 | -5/Factory | Loaded intel: 8 recycling unit locations 4844 | -5/Factory | Identified exit to Factory 4848 | -5/Factory | Spotted B-75 Beast 4919 | -5/Factory | Attached Meta Core, gained temporary slots: Propulsion, Utility, Weapon 4930 | -5/Factory | System corruption reached 10% 4942 | -5/Factory | Entered another Factory area 4942 | -4/Factory | Evolved 2 slots: Power x1, Utility x1 4943 | -4/Factory | Identified exit to Research 4951 | -4/Factory | Build established: Sprinter 5185 | -4/Factory | Spotted B-86 Titan 5195 | -4/Factory | Loaded intel: 8 recycling unit locations 5274 | -4/Factory | Core integrity fell below 50% 5303 | -4/Factory | Core integrity fell below 20% 5316 | -4/Factory | Destroyed by S-27 Virus with Autogun Last Messages --------------- UFD!NETWORK<626> UFD!RESOURCES<83> 0bP!READINESS UFD!SANITIZING UFD!... 05285_ ALERT: Suspicious activity at Recycling Unit F006. Dispatching Investigation squad. 05293_ S-27 Virus destroyed. 05295_ Nuclear Pulse Array destroyed. 05295_ P-70 Sage shuts down. 05295_ Slammed into P-70 Sage. 05296_ System corrupted: Heat flow error (+114). 05297_ Slug penetrates H-77 Assassin. 05299_ Slug penetrates Construction Platform. 05299_ Construction Platform disabled. 05299_ Slug penetrates Construction Platform. 05299_ Slug penetrates Wall. 05300_ S-27 Virus destroyed. 05302_ Penetrated by Slug. 05303_ S-27 Virus destroyed. Map ----- +----------------------------------------------------+ | ?????????????????????# + # # | | ?????????????????????# #### # # | | ?????????????????????# #??# # # | | ?????????????????????# #??# # # | | ?????????????????????# ####+########### # | | ?????????????????????# # | | ?????????????????????# # | | ?????????????????????# " " ## | | ?????????????????????# " " #? | | ?????????????????????# " " #? | | ?????????????????????############### " " #? | | ???????###########?????# # " " ! #? | | ???????# #?????# # " " ## | | ???????# """ """ #?????# # " " # | | ???????# """ """ #?????# # " " #" | | ???????# """ """ #?????# = [ # " " #" | | ???????# #?????# # | | ???????# " "" #?????# # | | ???????# "R"" #???###+#######+### """ | | ???????# """" ! #???# | | ???????#######+###???# """ | | ######## #?????# R ^ | | # # ##### #?????# """ | | #""" # #?###+####### | | #"R + #?# ! # #####+########## """ | | #""" # #?# # @p#??????????????# | | # # #?# = # #????????"" #### | | # # #?# + #???? / | | ######## #?# # #???????????########## | | ######## #?# # #????????????????????# | | # #?# # #????????????????????# | | """ # #?# ! # #????????????????????# | | """ # ############# ###################### | | """ # | | # !/ | | """ + ! "" | | """ # /!! | | """ # s"" | | ###+#+#####+### """"" " ## | | ## # """" #? | | ## "" "" # "" ## | | ## "" "" # "" # | | ######### """ """ # #" | | ????????# """ """ # """"""" """" #" | | ????????# """ """ # """"""" """" #" | | ????????# # """"""" """" #" | | ????????# # """"""" #" | | ????????# # # | | ????????# ] # """"""" + | | ????????# # """"""" # | +----------------------------------------------------+ Best States ------------- Heat Dissipation 43 Energy Generation 27 Energy Capacity 580 Matter Stores 300 Matter Capacity 300 Sight Range 22 Robot Scan Range 16 Terrain Scan Density 1210 Jamming Range 12 Armor Coverage 300 Evasion (%) 75 Recoil Reduction 2 Offensive Hacking 10 Item Schematics ----------------- None Robot Schematics ------------------ None Fabricated ------------ Nothing Repaired ---------- Nothing Alien Tech Used ----------------- None Achievements -------------- None Challenges ------------ None Game ------ Seed CloakingScrapDrillbomb Manual? 0 Play Time 01:01:46 Cumulative 282.5 hours Start 2025.09.12 @ 00:17:10 End 2025.09.12 @ 12:26:10 Sessions 1 Manual Loads 0 Difficulty Rogue Special Mode None Game No. 405 Rogue 405 Adventurer 0 Explorer 0 Win Type - Total 8 Types 5/0/1/2/0/0/0/0/0/0 Lore% 83 Gallery% 80 Achievement% 62 Wizard Run 0 Options --------- Layout 1 ASCII 0 Keyboard 0 Movement Numpad Keybinds 0 Fullscreen 1 Font 24/Smallcaps Map View 50x40 Zoom Use 0% Tactical HUD 1 Map Filters NONE Filters NONE Steam 1 RUN: e42690fb-790d-4891-8852-c16565daf9b1